fUST/lending_fUST_20260617
["ID","MTS","AMOUNT","RATE_DAILY","PERIOD"]
[425299207,1781667040000,-610.00469459,0.00016438,2]
[425299185,1781667040000,-500.0,0.00016438,2]
[425299165,1781667040000,-511.08535997,0.00016438,2]
[425299188,1781667040000,-500.0,0.00016438,2]
[425299235,1781667040000,-500.0,0.00016438,2]
[425299159,1781667040000,-500.0,0.00016438,2]
[425299161,1781667040000,-500.0,0.00016438,2]
[425299167,1781667040000,-562.77,0.00016438,2]
[425299158,1781667040000,-500.0,0.00016438,2]
[425299166,1781667040000,-509.92127943,0.00016438,2]
[425299164,1781667040000,-500.0,0.00016438,2]
[425299162,1781667040000,-507.73669361,0.00016438,2]
[425299160,1781667040000,-500.0,0.00016438,2]
[425299163,1781667040000,-500.0,0.00016438,2]
[425299169,1781667040000,-500.0,0.00016438,2]
[425299168,1781667040000,-500.0,0.00016438,2]
[425299179,1781667040000,-511.36598031,0.00016438,2]
[425299172,1781667040000,-500.0,0.00016438,2]
[425299190,1781667040000,-742.47,0.00016438,2]
[425299170,1781667040000,-508.90259481,0.00016438,2]
[425299173,1781667040000,-504.10977516,0.00016438,2]
[425299175,1781667040000,-1000.0,0.00016438,2]
[425299177,1781667040000,-500.0,0.00016438,2]
[425299174,1781667040000,-500.0,0.00016438,2]
[425299178,1781667040000,-539.49924728,0.00016438,2]
[425299176,1781667040000,-512.34536409,0.00016438,2]
[425299180,1781667040000,-394.47040983,0.00016438,2]
[425299182,1781667040000,-500.0,0.00016438,2]
[425299191,1781667040000,-500.0,0.00016438,2]
[425299181,1781667040000,-500.0,0.00016438,2]
[425299184,1781667040000,-500.0,0.00016438,2]
[425299183,1781667040000,-618.75,0.00016438,2]
[425299187,1781667040000,-505.29474936,0.00016438,2]
[425299186,1781667040000,-651.71,0.00016438,2]
[425299171,1781667040000,-517.2954034,0.00016438,2]
[425299234,1781667040000,-500.0,0.00016438,2]
[425299218,1781667040000,-500.0,0.00016438,2]
[425299224,1781667040000,-500.0,0.00016438,2]
[425299260,1781667040000,-521.42764602,0.00016438,2]
[425299265,1781667040000,-500.0,0.00016438,2]
[425299267,1781667040000,-500.0,0.00016438,2]
[425299269,1781667040000,-500.0,0.00016438,2]
[425299275,1781667040000,-500.0,0.00016438,2]
[425299277,1781667040000,-1079.454494,0.00016438,2]
[425299272,1781667040000,-512.80513418,0.00016438,2]
[425299270,1781667040000,-519.09329317,0.00016438,2]
[425299268,1781667040000,-908.32,0.00016438,2]
[425299273,1781667040000,-500.0,0.00016438,2]
[425299274,1781667040000,-500.0,0.00016438,2]
[425299266,1781667040000,-617.94562733,0.00016438,2]
[425299276,1781667040000,-1079.454494,0.00016438,2]
[425299290,1781667040000,-1620.14,0.00016438,2]
[425299279,1781667040000,-1079.454494,0.00016438,2]
[425299281,1781667040000,-1079.454494,0.00016438,2]
[425299283,1781667040000,-1079.454494,0.00016438,2]
[425299280,1781667040000,-841.18,0.00016438,2]
[425299289,1781667040000,-515.64039393,0.00016438,2]
[425299285,1781667040000,-500.0,0.00016438,2]
[425299282,1781667040000,-1079.454494,0.00016438,2]
[425299278,1781667040000,-1079.454494,0.00016438,2]
[425299284,1781667040000,-1079.454494,0.00016438,2]
[425299286,1781667040000,-500.0,0.00016438,2]
[425299287,1781667040000,-500.0,0.00016438,2]
[425299288,1781667040000,-500.0,0.00016438,2]
[425299291,1781667040000,-500.0,0.00016438,2]
[425299292,1781667040000,-759.37,0.00016438,2]
[425299229,1781667040000,-512.47562193,0.00016438,2]
[425299259,1781667040000,-500.0,0.00016438,2]
[425299256,1781667040000,-1958.02,0.00016438,2]
[425299271,1781667040000,-500.0,0.00016438,2]
[425299258,1781667040000,-514.40150461,0.00016438,2]
[425299257,1781667040000,-558.78866456,0.00016438,2]
[425299236,1781667040000,-500.0,0.00016438,2]
[425299227,1781667040000,-500.0,0.00016438,2]
[425299232,1781667040000,-511.0235058,0.00016438,2]
[425299230,1781667040000,-500.0,0.00016438,2]
[425299237,1781667040000,-500.0,0.00016438,2]
[425299226,1781667040000,-508.33218226,0.00016438,2]
[425299231,1781667040000,-500.0,0.00016438,2]
[425299238,1781667040000,-522.64065337,0.00016438,2]
[425299243,1781667040000,-500.0,0.00016438,2]
[425299242,1781667040000,-500.0,0.00016438,2]
[425299241,1781667040000,-500.0,0.00016438,2]
[425299240,1781667040000,-500.0,0.00016438,2]
[425299244,1781667040000,-2921.68,0.00016438,2]
[425299246,1781667040000,-500.0,0.00016438,2]
[425299228,1781667040000,-500.0,0.00016438,2]
[425299249,1781667040000,-500.0,0.00016438,2]
[425299245,1781667040000,-509.72911745,0.00016438,2]
[425299255,1781667040000,-500.0,0.00016438,2]
[425299251,1781667040000,-500.0,0.00016438,2]
[425299264,1781667040000,-515.42138441,0.00016438,2]
[425299261,1781667040000,-500.0,0.00016438,2]
[425299253,1781667040000,-500.0,0.00016438,2]
[425299263,1781667040000,-501.97,0.00016438,2]
[425299254,1781667040000,-506.90108564,0.00016438,2]
[425299252,1781667040000,-509.32666969,0.00016438,2]
[425299247,1781667040000,-500.0,0.00016438,2]
[425299239,1781667040000,-500.0,0.00016438,2]
[425299248,1781667040000,-500.0,0.00016438,2]
[425299250,1781667040000,-500.0,0.00016438,2]
[425299262,1781667040000,-763.76,0.00016438,2]
[425299336,1781667041000,-257.355259,0.00016438,2]
[425299335,1781667041000,-151.0,0.00016438,2]
[425299337,1781667041000,-580.64,0.00016438,2]
[425299339,1781667041000,-2089.64,0.00016438,2]
[425299326,1781667041000,-1826.39,0.00016438,2]
[425299334,1781667041000,-500.0,0.00016438,2]
[425299329,1781667041000,-151.0,0.00016438,2]
[425299332,1781667041000,-151.0,0.00016438,2]
[425299319,1781667041000,-500.0,0.00016438,2]
[425299330,1781667041000,-151.0,0.00016438,2]
[425299327,1781667041000,-500.0,0.00016438,2]
[425299338,1781667041000,-500.0,0.00016438,2]
[425299333,1781667041000,-151.0,0.00016438,2]
[425299352,1781667041000,-500.0,0.00016438,2]
[425299347,1781667041000,-500.0,0.00016438,2]
[425299341,1781667041000,-500.0,0.00016438,2]
[425299351,1781667041000,-500.0,0.00016438,2]
[425299340,1781667041000,-500.0,0.00016438,2]
[425299343,1781667041000,-500.0,0.00016438,2]
[425299346,1781667041000,-1140.72,0.00016438,2]
[425299344,1781667041000,-500.0,0.00016438,2]
[425299345,1781667041000,-1405.32,0.00016438,2]
[425299349,1781667041000,-500.0,0.00016438,2]
[425299342,1781667041000,-576.34,0.00016438,2]
[425299350,1781667041000,-549.65,0.00016438,2]
[425299348,1781667041000,-500.0,0.00016438,2]
[425299354,1781667041000,-516.9428528,0.00016438,2]
[425299359,1781667041000,-506.69958302,0.00016535,2]
[425299328,1781667041000,-500.0,0.00016438,2]
[425299353,1781667041000,-500.0,0.00016438,2]
[425299331,1781667041000,-500.0,0.00016438,2]
[425299294,1781667041000,-500.0,0.00016438,2]
[425299323,1781667041000,-716.91,0.00016438,2]
[425299293,1781667041000,-577.35,0.00016438,2]
[425299303,1781667041000,-151.79203061,0.00016438,2]
[425299295,1781667041000,-500.0,0.00016438,2]
[425299299,1781667041000,-520.95953793,0.00016438,2]
[425299304,1781667041000,-500.0,0.00016438,2]
[425299302,1781667041000,-500.0,0.00016438,2]
[425299297,1781667041000,-1226.79,0.00016438,2]
[425299298,1781667041000,-500.0,0.00016438,2]
[425299300,1781667041000,-12428.95,0.00016438,2]
[425299296,1781667041000,-500.0,0.00016438,2]
[425299301,1781667041000,-500.0,0.00016438,2]
[425299305,1781667041000,-664.1,0.00016438,2]
[425299307,1781667041000,-500.0,0.00016438,2]
[425299306,1781667041000,-500.0,0.00016438,2]
[425299308,1781667041000,-520.74794325,0.00016438,2]
[425299317,1781667041000,-500.0,0.00016438,2]
[425299316,1781667041000,-815.21,0.00016438,2]
[425299309,1781667041000,-500.0,0.00016438,2]
[425299313,1781667041000,-580.31,0.00016438,2]
[425299310,1781667041000,-500.0,0.00016438,2]
[425299315,1781667041000,-194.040482,0.00016438,2]
[425299312,1781667041000,-500.0,0.00016438,2]
[425299311,1781667041000,-500.0,0.00016438,2]
[425299314,1781667041000,-151.0,0.00016438,2]
[425299318,1781667041000,-538.07,0.00016438,2]
[425299321,1781667041000,-500.0,0.00016438,2]
[425299324,1781667041000,-1149.73,0.00016438,2]
[425299320,1781667041000,-500.0,0.00016438,2]
[425299322,1781667041000,-500.0,0.00016438,2]
[425299325,1781667041000,-738.91,0.00016438,2]
[425299357,1781667041000,-1791.19,0.00016438,2]
[425299360,1781667041000,-7542.87295286,0.00016636,2]
[425299356,1781667041000,-1876.5,0.00016438,2]
[425299394,1781667041000,-500.0,0.00016712,2]
[425299396,1781667041000,-500.0,0.00016712,2]
[425299406,1781667041000,-206.7661358,0.00016712,2]
[425299395,1781667041000,-500.0,0.00016712,2]
[425299408,1781667041000,-513.08276749,0.00016712,2]
[425299407,1781667041000,-284.82523141,0.00016712,2]
[425299400,1781667041000,-500.0,0.00016712,2]
[425299403,1781667041000,-500.0,0.00016712,2]
[425299397,1781667041000,-500.0,0.00016712,2]
[425299402,1781667041000,-500.0,0.00016712,2]
[425299399,1781667041000,-500.0,0.00016712,2]
[425299398,1781667041000,-500.0,0.00016712,2]
[425299405,1781667041000,-513.04001087,0.00016712,2]
[425299401,1781667041000,-500.0,0.00016712,2]
[425299404,1781667041000,-522.24674842,0.00016712,2]
[425299409,1781667041000,-500.0,0.00016712,2]
[425299413,1781667041000,-360.25791843,0.00016712,2]
[425299411,1781667041000,-510.86105337,0.00016712,2]
[425299417,1781667041000,-500.0,0.00016712,2]
[425299420,1781667041000,-500.0,0.00016712,2]
[425299412,1781667041000,-517.74691578,0.00016712,2]
[425299418,1781667041000,-562.77,0.00016712,2]
[425299421,1781667041000,-500.0,0.00016712,2]
[425299414,1781667041000,-511.98874319,0.00016712,2]
[425299410,1781667041000,-507.24485103,0.00016712,2]
[425299416,1781667041000,-500.0,0.00016712,2]
[425299415,1781667041000,-500.0,0.00016712,2]
[425299363,1781667041000,-445.0,0.00016639,2]
[425299422,1781667041000,-500.0,0.00016712,2]
[425299393,1781667041000,-1000.0,0.00016712,2]
[425299389,1781667041000,-500.0,0.00016712,2]
[425299419,1781667041000,-592.47926999,0.00016712,2]
[425299390,1781667041000,-500.0,0.00016712,2]
[425299382,1781667041000,-500.0,0.00016712,2]
[425299355,1781667041000,-500.0,0.00016438,2]
[425299367,1781667041000,-250.0,0.000167,2]
[425299361,1781667041000,-875.278,0.00016639,2]
[425299364,1781667041000,-1418.0,0.00016639,2]
[425299366,1781667041000,-250.0,0.000167,2]
[425299358,1781667041000,-151.905266,0.00016438,2]
[425299365,1781667041000,-250.0,0.000167,2]
[425299369,1781667041000,-250.0,0.000167,2]
[425299379,1781667041000,-500.0,0.00016712,2]
[425299370,1781667041000,-250.0,0.000167,2]
[425299368,1781667041000,-250.0,0.000167,2]
[425299380,1781667041000,-500.0,0.00016712,2]
[425299371,1781667041000,-250.0,0.000167,2]
[425299372,1781667041000,-250.0,0.000167,2]
[425299362,1781667041000,-193.198,0.00016639,2]
[425299373,1781667041000,-250.0,0.000167,2]
[425299387,1781667041000,-500.0,0.00016712,2]
[425299388,1781667041000,-500.0,0.00016712,2]
[425299391,1781667041000,-500.0,0.00016712,2]
[425299392,1781667041000,-500.0,0.00016712,2]
[425299376,1781667041000,-510.13554831,0.00016712,2]
[425299385,1781667041000,-605.53769875,0.00016712,2]
[425299383,1781667041000,-500.0,0.00016712,2]
[425299384,1781667041000,-500.0,0.00016712,2]
[425299381,1781667041000,-500.0,0.00016712,2]
[425299377,1781667041000,-500.0,0.00016712,2]
[425299375,1781667041000,-2101.3772,0.00016712,2]
[425299378,1781667041000,-500.0,0.00016712,2]
[425299374,1781667041000,-362.6,0.000167,2]
[425299386,1781667041000,-500.0,0.00016712,2]
[425299464,1781667042000,-555.43025528,0.00016712,2]
[425299465,1781667042000,-500.0,0.00016712,2]
[425299473,1781667042000,-500.0,0.00016712,2]
[425299463,1781667042000,-500.0,0.00016712,2]
[425299466,1781667042000,-500.0,0.00016712,2]
[425299454,1781667042000,-549.66,0.00016712,2]
[425299456,1781667042000,-500.0,0.00016712,2]
[425299455,1781667042000,-500.0,0.00016712,2]
[425299457,1781667042000,-500.0,0.00016712,2]
[425299452,1781667042000,-500.0,0.00016712,2]
[425299453,1781667042000,-500.0,0.00016712,2]
[425299462,1781667042000,-500.0,0.00016712,2]
[425299467,1781667042000,-500.0,0.00016712,2]
[425299476,1781667042000,-509.02356707,0.00016712,2]
[425299469,1781667042000,-500.0,0.00016712,2]
[425299468,1781667042000,-500.0,0.00016712,2]
[425299472,1781667042000,-500.0,0.00016712,2]
[425299470,1781667042000,-500.0,0.00016712,2]
[425299471,1781667042000,-500.0,0.00016712,2]
[425299475,1781667042000,-500.0,0.00016712,2]
[425299477,1781667042000,-500.0,0.00016712,2]
[425299478,1781667042000,-500.0,0.00016712,2]
[425299479,1781667042000,-500.0,0.00016712,2]
[425299481,1781667042000,-500.0,0.00016712,2]
[425299480,1781667042000,-500.0,0.00016712,2]
[425299484,1781667042000,-500.0,0.00016712,2]
[425299448,1781667042000,-500.0,0.00016712,2]
[425299474,1781667042000,-2921.68,0.00016712,2]
[425299450,1781667042000,-500.0,0.00016712,2]
[425299436,1781667042000,-1284.71,0.00016712,2]
[425299458,1781667042000,-500.0,0.00016712,2]
[425299482,1781667042000,-500.0,0.00016712,2]
[425299423,1781667042000,-1000.0,0.00016712,2]
[425299433,1781667042000,-742.47,0.00016712,2]
[425299434,1781667042000,-423.20294664,0.00016712,2]
[425299424,1781667042000,-500.0,0.00016712,2]
[425299427,1781667042000,-500.0,0.00016712,2]
[425299425,1781667042000,-500.0,0.00016712,2]
[425299431,1781667042000,-500.0,0.00016712,2]
[425299426,1781667042000,-618.75,0.00016712,2]
[425299432,1781667042000,-1123.69,0.00016712,2]
[425299429,1781667042000,-500.0,0.00016712,2]
[425299430,1781667042000,-651.71,0.00016712,2]
[425299428,1781667042000,-500.0,0.00016712,2]
[425299451,1781667042000,-500.0,0.00016712,2]
[425299435,1781667042000,-500.0,0.00016712,2]
[425299441,1781667042000,-500.0,0.00016712,2]
[425299438,1781667042000,-500.0,0.00016712,2]
[425299439,1781667042000,-500.0,0.00016712,2]
[425299447,1781667042000,-500.0,0.00016712,2]
[425299443,1781667042000,-529.03156468,0.00016712,2]
[425299437,1781667042000,-500.0,0.00016712,2]
[425299440,1781667042000,-500.0,0.00016712,2]
[425299445,1781667042000,-500.0,0.00016712,2]
[425299446,1781667042000,-500.0,0.00016712,2]
[425299444,1781667042000,-500.0,0.00016712,2]
[425299449,1781667042000,-500.0,0.00016712,2]
[425299459,1781667042000,-500.0,0.00016712,2]
[425299460,1781667042000,-500.0,0.00016712,2]
[425299442,1781667042000,-500.0,0.00016712,2]
[425299483,1781667042000,-1958.02,0.00016712,2]
[425299461,1781667042000,-500.0,0.00016712,2]
[425299489,1781667042000,-500.0,0.00016712,2]
[425299515,1781667042000,-500.0,0.00016712,2]
[425299513,1781667042000,-290.46274213,0.00016712,2]
[425299518,1781667042000,-12428.95,0.00016712,2]
[425299517,1781667042000,-500.0,0.00016712,2]
[425299534,1781667042000,-500.0,0.00016712,2]
[425299523,1781667042000,-500.0,0.00016712,2]
[425299524,1781667042000,-500.0,0.00016712,2]
[425299526,1781667042000,-500.0,0.00016712,2]
[425299527,1781667042000,-500.0,0.00016712,2]
[425299525,1781667042000,-500.0,0.00016712,2]
[425299522,1781667042000,-664.1,0.00016712,2]
[425299533,1781667042000,-500.0,0.00016712,2]
[425299530,1781667042000,-815.21,0.00016712,2]
[425299543,1781667042000,-151.0,0.00016712,2]
[425299531,1781667042000,-500.0,0.00016712,2]
[425299532,1781667042000,-538.07,0.00016712,2]
[425299535,1781667042000,-500.0,0.00016712,2]
[425299537,1781667042000,-716.91,0.00016712,2]
[425299539,1781667042000,-738.91,0.00016712,2]
[425299536,1781667042000,-500.0,0.00016712,2]
[425299540,1781667042000,-1826.39,0.00016712,2]
[425299538,1781667042000,-1149.73,0.00016712,2]
[425299541,1781667042000,-500.0,0.00016712,2]
[425299544,1781667042000,-500.0,0.00016712,2]
[425299546,1781667042000,-151.0,0.00016712,2]
[425299542,1781667042000,-500.0,0.00016712,2]
[425299545,1781667042000,-151.0,0.00016712,2]
[425299485,1781667042000,-500.0,0.00016712,2]
[425299529,1781667042000,-580.31,0.00016712,2]
[425299519,1781667042000,-500.0,0.00016712,2]
[425299528,1781667042000,-500.0,0.00016712,2]
[425299512,1781667042000,-577.35,0.00016712,2]
[425299514,1781667042000,-500.0,0.00016712,2]
[425299488,1781667042000,-500.0,0.00016712,2]
[425299486,1781667042000,-763.76,0.00016712,2]
[425299493,1781667042000,-500.0,0.00016712,2]
[425299494,1781667042000,-175.69488924,0.00016712,2]
[425299487,1781667042000,-501.97,0.00016712,2]
[425299495,1781667042000,-523.36639386,0.00016712,2]
[425299490,1781667042000,-908.32,0.00016712,2]
[425299491,1781667042000,-500.0,0.00016712,2]
[425299492,1781667042000,-500.0,0.00016712,2]
[425299498,1781667042000,-1079.454494,0.00016712,2]
[425299508,1781667042000,-500.0,0.00016712,2]
[425299497,1781667042000,-1079.454494,0.00016712,2]
[425299499,1781667042000,-1079.454494,0.00016712,2]
[425299496,1781667042000,-1079.454494,0.00016712,2]
[425299521,1781667042000,-258.53247867,0.00016712,2]
[425299516,1781667042000,-1226.79,0.00016712,2]
[425299501,1781667042000,-1079.454494,0.00016712,2]
[425299520,1781667042000,-500.0,0.00016712,2]
[425299511,1781667042000,-759.37,0.00016712,2]
[425299509,1781667042000,-1620.14,0.00016712,2]
[425299503,1781667042000,-1079.454494,0.00016712,2]
[425299510,1781667042000,-500.0,0.00016712,2]
[425299502,1781667042000,-1079.454494,0.00016712,2]
[425299505,1781667042000,-512.77325073,0.00016712,2]
[425299507,1781667042000,-500.0,0.00016712,2]
[425299506,1781667042000,-500.0,0.00016712,2]
[425299500,1781667042000,-841.18,0.00016712,2]
[425299504,1781667042000,-1079.454498,0.00016712,2]
[425299589,1781667043000,-500.0,0.00016986,2]
[425299590,1781667043000,-500.0,0.00016986,2]
[425299593,1781667043000,-500.0,0.00016986,2]
[425299600,1781667043000,-500.0,0.00016986,2]
[425299591,1781667043000,-500.0,0.00016986,2]
[425299592,1781667043000,-500.0,0.00016986,2]
[425299583,1781667043000,-500.0,0.00016986,2]
[425299585,1781667043000,-541.5096631,0.00016986,2]
[425299581,1781667043000,-500.0,0.00016986,2]
[425299584,1781667043000,-500.0,0.00016986,2]
[425299580,1781667043000,-500.0,0.00016986,2]
[425299601,1781667043000,-500.0,0.00016986,2]
[425299586,1781667043000,-500.0,0.00016986,2]
[425299598,1781667043000,-500.0,0.00016986,2]
[425299605,1781667043000,-500.0,0.00016986,2]
[425299595,1781667043000,-500.0,0.00016986,2]
[425299596,1781667043000,-500.0,0.00016986,2]
[425299602,1781667043000,-500.0,0.00016986,2]
[425299597,1781667043000,-500.0,0.00016986,2]
[425299599,1781667043000,-500.0,0.00016986,2]
[425299615,1781667043000,-500.0,0.00016986,2]
[425299614,1781667043000,-500.0,0.00016986,2]
[425299609,1781667043000,-562.77,0.00016986,2]
[425299612,1781667043000,-500.0,0.00016986,2]
[425299616,1781667043000,-618.75,0.00016986,2]
[425299610,1781667043000,-500.0,0.00016986,2]
[425299608,1781667043000,-176.98316286,0.00016986,2]
[425299606,1781667043000,-500.0,0.00016986,2]
[425299582,1781667043000,-510.28671577,0.00016986,2]
[425299594,1781667043000,-1000.0,0.00016986,2]
[425299579,1781667043000,-598.65070454,0.00016986,2]
[425299549,1781667043000,-580.64,0.00016712,2]
[425299578,1781667043000,-2101.3772,0.00016986,2]
[425299547,1781667043000,-151.0,0.00016712,2]
[425299611,1781667043000,-500.0,0.00016986,2]
[425299559,1781667043000,-500.0,0.00016712,2]
[425299560,1781667043000,-500.0,0.00016712,2]
[425299548,1781667043000,-500.0,0.00016712,2]
[425299551,1781667043000,-2089.64,0.00016712,2]
[425299550,1781667043000,-526.21417246,0.00016712,2]
[425299552,1781667043000,-500.0,0.00016712,2]
[425299553,1781667043000,-500.0,0.00016712,2]
[425299554,1781667043000,-576.34,0.00016712,2]
[425299558,1781667043000,-1140.72,0.00016712,2]
[425299557,1781667043000,-1405.32,0.00016712,2]
[425299555,1781667043000,-500.0,0.00016712,2]
[425299556,1781667043000,-500.0,0.00016712,2]
[425299576,1781667043000,-150.995,0.00016935,2]
[425299562,1781667043000,-500.0,0.00016712,2]
[425299573,1781667043000,-150.334,0.00016935,2]
[425299570,1781667043000,-251.95618108,0.00016743,2]
[425299566,1781667043000,-500.0,0.00016712,2]
[425299568,1781667043000,-515.43706171,0.00016712,2]
[425299565,1781667043000,-500.0,0.00016712,2]
[425299567,1781667043000,-500.0,0.00016712,2]
[425299572,1781667043000,-150.432,0.00016935,2]
[425299569,1781667043000,-1876.5,0.00016712,2]
[425299574,1781667043000,-249.07,0.00016935,2]
[425299575,1781667043000,-247.494,0.00016935,2]
[425299571,1781667043000,-243.553079,0.00016778,2]
[425299588,1781667043000,-500.0,0.00016986,2]
[425299577,1781667043000,-284.899,0.00016935,2]
[425299587,1781667043000,-500.0,0.00016986,2]
[425299564,1781667043000,-549.65,0.00016712,2]
[425299603,1781667043000,-500.0,0.00016986,2]
[425299604,1781667043000,-500.0,0.00016986,2]
[425299607,1781667043000,-500.0,0.00016986,2]
[425299652,1781667043000,-500.0,0.00016986,2]
[425299655,1781667043000,-500.0,0.00016986,2]
[425299654,1781667043000,-500.0,0.00016986,2]
[425299658,1781667043000,-500.0,0.00016986,2]
[425299653,1781667043000,-500.0,0.00016986,2]
[425299651,1781667043000,-500.0,0.00016986,2]
[425299657,1781667043000,-500.0,0.00016986,2]
[425299660,1781667043000,-500.0,0.00016986,2]
[425299670,1781667043000,-500.0,0.00016986,2]
[425299659,1781667043000,-500.0,0.00016986,2]
[425299661,1781667043000,-500.0,0.00016986,2]
[425299663,1781667043000,-500.0,0.00016986,2]
[425299662,1781667043000,-2921.68,0.00016986,2]
[425299664,1781667043000,-500.0,0.00016986,2]
[425299648,1781667043000,-500.0,0.00016986,2]
[425299665,1781667043000,-500.0,0.00016986,2]
[425299667,1781667043000,-337.22880925,0.00016986,2]
[425299669,1781667043000,-500.0,0.00016986,2]
[425299668,1781667043000,-500.0,0.00016986,2]
[425299671,1781667043000,-1958.02,0.00016986,2]
[425299674,1781667043000,-763.76,0.00016986,2]
[425299675,1781667043000,-501.97,0.00016986,2]
[425299677,1781667043000,-500.0,0.00016986,2]
[425299673,1781667043000,-500.0,0.00016986,2]
[425299676,1781667043000,-500.0,0.00016986,2]
[425299672,1781667043000,-500.0,0.00016986,2]
[425299678,1781667043000,-908.32,0.00016986,2]
[425299679,1781667043000,-500.0,0.00016986,2]
[425299681,1781667043000,-150.21926563,0.00016986,2]
[425299613,1781667043000,-1000.0,0.00016986,2]
[425299666,1781667043000,-162.77119075,0.00016986,2]
[425299650,1781667043000,-500.0,0.00016986,2]
[425299656,1781667043000,-500.0,0.00016986,2]
[425299649,1781667043000,-500.0,0.00016986,2]
[425299617,1781667043000,-500.0,0.00016986,2]
[425299619,1781667043000,-500.0,0.00016986,2]
[425299620,1781667043000,-651.71,0.00016986,2]
[425299622,1781667043000,-1123.69,0.00016986,2]
[425299618,1781667043000,-500.0,0.00016986,2]
[425299628,1781667043000,-500.0,0.00016986,2]
[425299621,1781667043000,-500.0,0.00016986,2]
[425299623,1781667043000,-742.47,0.00016986,2]
[425299630,1781667043000,-500.0,0.00016986,2]
[425299680,1781667043000,-500.0,0.00016986,2]
[425299625,1781667043000,-1284.71,0.00016986,2]
[425299626,1781667043000,-523.58887667,0.00016986,2]
[425299624,1781667043000,-500.0,0.00016986,2]
[425299647,1781667043000,-500.0,0.00016986,2]
[425299627,1781667043000,-525.75847193,0.00016986,2]
[425299629,1781667043000,-521.12490063,0.00016986,2]
[425299645,1781667043000,-500.0,0.00016986,2]
[425299646,1781667043000,-500.0,0.00016986,2]
[425299641,1781667043000,-500.0,0.00016986,2]
[425299639,1781667043000,-500.0,0.00016986,2]
[425299638,1781667043000,-500.0,0.00016986,2]
[425299632,1781667043000,-513.87347527,0.00016986,2]
[425299636,1781667043000,-500.0,0.00016986,2]
[425299640,1781667043000,-500.0,0.00016986,2]
[425299635,1781667043000,-500.0,0.00016986,2]
[425299644,1781667043000,-500.0,0.00016986,2]
[425299643,1781667043000,-549.66,0.00016986,2]
[425299634,1781667043000,-500.0,0.00016986,2]
[425299631,1781667043000,-448.2407431,0.00016986,2]
[425299642,1781667043000,-500.0,0.00016986,2]
[425299637,1781667043000,-500.0,0.00016986,2]
[425299682,1781667044000,-841.18,0.00016986,2]
[425299684,1781667044000,-500.0,0.00016986,2]
[425299683,1781667044000,-500.0,0.00016986,2]
[425299685,1781667044000,-523.52077079,0.00016986,2]
[425299687,1781667044000,-500.0,0.00016986,2]
[425299686,1781667044000,-1620.14,0.00016986,2]
[425299689,1781667044000,-577.35,0.00016986,2]
[425299692,1781667044000,-1226.79,0.00016986,2]
[425299691,1781667044000,-500.0,0.00016986,2]
[425299688,1781667044000,-759.37,0.00016986,2]
[425299693,1781667044000,-500.0,0.00016986,2]
[425299690,1781667044000,-500.0,0.00016986,2]